bitfinex/quotes_SOLUSD_20251115
["timestamp","ask_amount","ask_price","bid_price","bid_amount"]
[1763247351138,8.97,139.99,139.96,7.84489854]
[1763247351643,8.44,139.99,139.96,7.84489854]
[1763247351933,8.44,139.99,139.97,0.7]
[1763247354050,0.53,139.98,139.93,0.7]
[1763247354330,8.44,139.97,139.93,7.84621373]
[1763247354733,8.97,139.97,139.94,0.7]
[1763247355343,8.44,139.97,139.94,0.7]
[1763247355722,8.44,139.97,139.94,3.69296707]
[1763247356120,8.44,139.97,139.95,0.7]
[1763247358645,7.67389818,139.98,139.95,0.7]
[1763247359020,8.44,139.97,139.95,0.7]
[1763247360843,15.58446351,139.97,139.93,10.13910093]
[1763247361054,15.58446351,139.97,139.94,0.7]
[1763247361231,18.57743058,139.97,139.94,0.7]
[1763247361417,15.58446351,139.97,139.94,0.7]
[1763247363349,18.57743058,139.97,139.94,0.7]
[1763247365734,10.13743058,139.97,139.94,0.7]
[1763247366060,18.57743058,139.97,139.94,0.7]
[1763247366261,2.99296707,139.95,139.9,2.99296707]
[1763247366435,8.97,139.94,139.91,0.7]
[1763247366844,8.44,139.94,139.91,0.7]
[1763247367465,13.31179476,139.93,139.89,23.3512]
[1763247367768,15.58725638,139.92,139.89,0.7]
[1763247367937,19.11022345,139.92,139.89,0.7]
[1763247368140,9.78882769,139.91,139.88,0.7]
[1763247368331,8.44,139.9,139.88,0.7]
[1763247368763,8.44,139.9,139.88,3.69296707]
[1763247369143,8.44,139.9,139.89,0.7]
[1763247369657,9.78882769,139.91,139.88,0.7]
[1763247370338,16.93630357,139.91,139.88,0.7]
[1763247372263,8.44,139.9,139.88,0.7]
[1763247372656,8.44,139.9,139.88,7.84895227]
[1763247372973,8.44,139.9,139.88,0.7]
[1763247374445,8.44,139.9,139.88,7.84895458]
[1763247380760,8.44,139.9,139.89,0.7]
[1763247383761,8.44,139.9,139.89,7.8484738]
[1763247384558,8.44,139.9,139.89,0.7]
[1763247386761,8.44,139.9,139.86,31.7168929]
[1763247386956,8.44,139.9,139.88,7.84854158]
[1763247389690,1.91576675,139.93,139.89,0.7]
[1763247389888,9.78882769,139.93,139.89,2.61576675]
[1763247390372,9.78882769,139.93,139.9,0.7]
[1763247392380,8.46,139.94,139.91,7.14745193]
[1763247392770,8.46,139.94,139.92,0.7]
[1763247394788,8.46,139.94,139.92,7.84681878]
[1763247395773,12.23459444,139.93,139.88,0.7]
[1763247395988,10.37576675,139.92,139.88,0.7]
[1763247396173,10.90576675,139.92,139.88,0.7]
[1763247396684,10.37576675,139.92,139.88,0.7]
[1763247396882,18.05283367,139.92,139.88,7.8489399]
[1763247397073,17.52283367,139.92,139.89,0.7]
[1763247398797,17.52283367,139.92,139.89,7.84844705]
[1763247399291,17.52283367,139.92,139.9,0.7]
[1763247401973,15.60706692,139.92,139.9,0.7]
[1763247409789,8.46,139.92,139.9,0.7]
[1763247416102,15.60703607,139.92,139.9,0.7]
[1763247418108,8.46,139.92,139.9,7.84794272]
[1763247418506,8.46,139.92,139.91,0.69]
[1763247431723,8.46,139.92,139.9,7.14794272]
[1763247431906,8.46,139.92,139.9,7.83794272]
[1763247432721,8.46,139.92,139.89,7.1484738]
[1763247432928,8.46,139.92,139.91,0.68]
[1763247435932,8.46,139.92,139.89,7.1484738]
[1763247436122,8.46,139.92,139.89,7.8084738]
[1763247436323,8.46,139.92,139.9,0.66]
[1763247439031,15.60707352,139.92,139.86,8.46]
[1763247439207,1.91576675,139.9,139.87,0.66]
[1763247439414,10.88576675,139.9,139.87,0.66]
[1763247440332,10.35576675,139.9,139.87,0.66]
[1763247440535,10.88576675,139.9,139.86,7.14992354]
[1763247440920,10.88576675,139.9,139.87,0.66]
[1763247441125,19.38306824,139.89,139.86,0.66]
[1763247441322,8.44,139.88,139.86,0.66]
[1763247441715,8.97,139.88,139.85,0.66]
[1763247441915,8.97,139.88,139.84,0.66]
[1763247441916,10.31882769,139.87,139.84,0.66]
[1763247442131,8.44,139.86,139.84,0.66]
[1763247443422,15.5901052,139.86,139.84,0.66]
[1763247444307,15.5901052,139.86,139.83,0.66]
[1763247445012,16.1201052,139.86,139.83,0.66]
[1763247445531,8.97,139.86,139.83,7.81139406]
[1763247446233,8.46,139.87,139.84,3.65591615]
[1763247446735,8.46,139.87,139.85,0.66]
[1763247452329,9.78882769,139.87,139.85,7.81035901]
[1763247452532,9.78882769,139.87,139.86,0.66]
[1763247460040,8.46,139.88,139.86,7.81000715]
[1763247460547,18.24882769,139.88,139.87,0.66]
[1763247461446,8.46,139.88,139.87,0.66]
[1763247461646,9.78882769,139.89,139.87,0.66]
[1763247461838,8.46,139.9,139.87,0.66]
[1763247462143,8.46,139.9,139.88,7.14898484]
[1763247462745,104.2,139.91,139.89,0.66]
[1763247462952,9.78882769,139.91,139.89,0.66]
[1763247463652,8.46,139.92,139.89,0.66]
[1763247464351,18.24882769,139.92,139.89,7.80809166]
[1763247464718,18.24882769,139.92,139.9,0.67]
[1763247466148,25.39580863,139.92,139.9,0.67]
[1763247467019,18.24882769,139.92,139.9,0.67]
[1763247467951,25.395805,139.92,139.9,0.67]
[1763247470164,16.935805,139.92,139.9,0.67]
[1763247471450,9.78882769,139.92,139.9,0.67]
[1763247473255,114.34042901,139.97,139.91,2.99591615]
[1763247473435,9.78882769,139.96,139.9,32.83590646]
[1763247473640,9.78882769,139.96,139.92,2.99591615]
[1763247474042,9.78882769,139.96,139.93,0.67]
[1763247474248,104.2,139.97,139.93,0.67]
[1763247474736,8.44,139.98,139.93,3.66591615]
[1763247474938,18.38506879,140.02,139.93,0.67]
[1763247475249,9.78882769,140.0,139.96,2.99591615]
[1763247475423,9.78882769,140.0,139.97,0.67]
[1763247475631,9.78882769,140.0,139.97,3.66591615]
[1763247476039,15.58243812,140.01,139.98,0.67]
[1763247476040,8.44,140.01,139.98,0.67]
[1763247476461,2.99591615,140.02,139.98,0.67]
[1763247476643,2.99591615,140.02,139.98,3.66591615]
[1763247476644,9.78882769,140.02,139.98,3.66591615]
[1763247477049,9.78882769,140.02,139.99,0.67]
[1763247479051,0.2,140.03,139.99,10.80910524]
[1763247479239,0.2,140.03,140.0,2.99591615]
[1763247479440,0.2,140.03,140.02,7.14183688]
[1763247479641,0.2,140.03,140.02,7.81183688]
[1763247483062,0.2,140.03,140.02,10.80775303]
[1763247483664,0.2,140.03,140.02,7.81183688]
[1763247484743,0.2,140.03,140.01,8.44]
[1763247484944,0.2,140.03,140.0,0.67]
[1763247485140,7.34136509,140.03,140.0,0.67]
[1763247485864,7.34136509,140.03,139.99,0.67]
[1763247485865,3.52591615,140.02,139.99,0.67]
[1763247486238,0.53,140.02,139.99,0.67]
[1763247486857,7.6719815,140.02,139.99,0.67]
[1763247487772,7.6719815,140.02,139.98,7.81383043]
[1763247489670,7.6719815,140.02,139.98,7.14383043]
[1763247489855,7.6719815,140.02,139.99,0.67]
[1763247492353,7.1419815,140.02,139.99,0.67]
[1763247495044,15.5819815,140.02,139.99,0.67]
[1763247498853,15.5819815,140.02,139.97,10.84020371]
[1763247498854,0.53,140.01,139.97,10.84020371]
[1763247499260,0.53,140.01,139.98,0.7]
[1763247499657,18.57789765,140.02,139.98,0.7]
[1763247499848,19.10789765,140.02,139.98,0.7]
[1763247500049,16.93165206,140.01,139.98,0.7]
[1763247500359,17.46165206,140.01,139.98,0.7]
[1763247501270,9.78882769,140.01,139.98,0.7]
[1763247501775,10.31882769,140.01,139.98,0.7]
[1763247501982,9.78882769,140.01,139.98,0.7]
[1763247502179,9.78882769,140.01,139.98,10.83965292]
[1763247502581,18.22882769,140.02,139.99,3.69591615]
[1763247502891,18.22882769,140.02,140.0,0.7]
[1763247503358,0.2,140.03,140.0,3.69591615]
[1763247503562,0.2,140.03,140.01,2.99591615]
[1763247503785,0.2,140.03,140.02,0.7]
[1763247503953,0.2,140.03,140.02,3.69591615]
[1763247504158,0.2,140.03,140.02,12.13591615]
[1763247504462,0.2,140.03,140.02,14.99520347]
[1763247505583,0.2,140.03,140.02,22.13704035]
[1763247506951,0.2,140.03,140.02,21.0523215]
[1763247507870,0.2,140.03,140.02,18.19303418]
[1763247517760,0.2,140.03,140.02,16.28183688]
[1763247517975,0.2,140.03,140.02,18.19303418]
[1763247518182,0.2,140.03,140.02,16.28183688]
[1763247518383,0.2,140.03,140.02,18.19303418]
[1763247518682,9.78253287,140.03,139.98,17.85897842]
[1763247518880,9.78253287,140.03,139.93,157.58673122]
[1763247518881,1.9111973,140.01,139.97,7.84438722]
[1763247519073,1.9111973,139.99,139.95,10.70551606]
[1763247519258,1.9111973,139.98,139.95,7.84520644]
[1763247519461,2.4411973,139.98,139.95,7.84520644]
[1763247519662,1.9111973,139.97,139.95,7.14520644]
[1763247519860,1.9111973,139.97,139.94,0.7]
[1763247520089,1.9111973,139.96,139.94,0.7]
[1763247520255,1.9111973,139.96,139.93,15.58624445]
[1763247520256,2.4411973,139.96,139.92,0.7]
[1763247520456,2.4411973,139.95,139.92,0.7]
[1763247520679,7.14459076,139.97,139.92,0.7]
[1763247520965,1.9111973,139.97,139.92,0.7]
[1763247521162,2.4411973,139.97,139.92,0.7]
[1763247522185,2.4411973,139.97,139.93,7.14643035]
[1763247522777,0.53,139.97,139.93,7.14643035]
[1763247522980,0.53,139.97,139.93,7.84643035]
[1763247523374,0.53,139.97,139.94,7.82576845]
[1763247525390,1.9111973,139.95,139.91,12.84974934]
[1763247525569,7.67441403,139.97,139.91,9.12]
[1763247525570,1.9111973,139.94,139.91,9.12]
[1763247525773,2.4411973,139.94,139.91,9.12]
[1763247525971,2.4411973,139.94,139.9,22.6512]
[1763247526169,2.4411973,139.94,139.9,23.3312]
[1763247526376,1.9111973,139.93,139.9,23.3312]
[1763247526578,2.4411973,139.93,139.9,23.3312]
[1763247527080,1.9111973,139.92,139.89,7.14827173]
[1763247527282,9.58776739,139.93,139.89,7.82827173]
[1763247528169,10.31882769,139.92,139.88,7.82896615]
[1763247528378,1.9111973,139.93,139.88,7.82896615]
[1763247528587,2.4411973,139.93,139.89,0.68]
[1763247529183,9.5876565,139.93,139.89,0.68]
[1763247530271,9.5876565,139.93,139.89,7.82820142]
[1763247531601,7.6764592,139.93,139.89,7.82820142]
[1763247534497,7.6764592,139.93,139.9,0.68]
[1763247535781,20.14002499,139.95,139.9,7.82787043]
[1763247535985,9.78882769,139.94,139.9,7.82787043]
[1763247536284,2.4411973,139.98,139.92,1.9111973]
[1763247536484,7.67388579,139.98,139.94,7.14591967]
[1763247536689,7.67388579,139.98,139.95,0.68]
[1763247537578,9.58508309,139.98,139.95,0.68]
[1763247538302,2.4411973,139.98,139.95,0.68]
[1763247538907,11.70002499,140.0,139.95,7.8253512]
[1763247539260,1.9111973,139.99,139.95,7.8253512]
[1763247539373,0.53,140.02,139.96,0.68]
[1763247539582,11.90002499,140.03,139.98,26.91476923]
[1763247539800,0.2,140.03,139.99,1.9111973]
[1763247539987,0.2,140.03,140.0,1.9111973]
[1763247540189,0.2,140.03,140.01,1.9111973]
[1763247540383,0.2,140.03,140.02,0.68]
[1763247540695,26.12026906,140.03,139.97,8.02173296]
[1763247540899,1.9111973,139.98,139.94,0.68]
[1763247541098,1.9111973,139.97,139.93,7.14627286]
[1763247541398,1.9111973,139.97,139.93,7.82627286]
[1763247541700,1.9111973,139.96,139.93,0.68]
[1763247541922,9.05628948,139.96,139.91,9.78882769]
[1763247542076,9.78882769,139.94,139.9,0.68]
[1763247542396,1.9111973,139.91,139.86,25.19967076]
[1763247542609,1.9111973,139.9,139.86,21.46613716]
[1763247542784,1.9111973,139.89,139.85,7.83001812]
[1763247543301,1.9111973,139.86,139.83,0.68]
[1763247543472,20.16002499,139.87,139.83,0.68]
[1763247543676,27.83955468,139.87,139.83,0.68]
[1763247543877,2.4411973,139.86,139.82,0.1]
[1763247544175,0.53,139.86,139.82,0.78]
[1763247545010,0.53,139.86,139.82,0.1]
[1763247545011,1.9111973,139.85,139.82,0.1]
[1763247545193,0.53,139.86,139.82,0.1]
[1763247545194,9.78882769,139.83,139.82,0.1]
[1763247545498,11.70002499,139.83,139.82,0.1]
[1763247545702,19.38156614,139.83,139.82,0.1]
[1763247545902,9.78882769,139.83,139.82,0.1]
[1763247546102,8.46,139.87,139.82,0.78]
[1763247546307,18.24882769,139.87,139.83,1.9111973]
[1763247546503,8.46,139.87,139.84,1.9111973]
[1763247546686,8.46,139.88,139.84,1.9111973]
[1763247546897,9.78882769,139.89,139.85,2.5911973]
[1763247547205,10.31882769,139.89,139.83,10.3711973]
[1763247547392,2.4411973,139.88,139.83,8.46]
[1763247547594,8.46,139.87,139.82,9.8429656]
[1763247547996,8.46,139.87,139.83,0.68]
[1763247548801,10.3711973,139.87,139.83,0.68]
[1763247549505,8.46,139.87,139.83,2.5911973]
[1763247549708,18.84851136,139.89,139.84,9.74222704]
[1763247549905,27.30851136,139.89,139.84,9.74222704]
[1763247550105,27.30851136,139.89,139.85,0.68]
[1763247550308,1.9111973,139.88,139.85,0.68]
[1763247551300,2.4411973,139.87,139.82,0.78]
[1763247551488,20.16002499,139.86,139.82,0.78]
[1763247551688,27.84032908,139.86,139.82,0.78]
[1763247552420,1.9111973,139.85,139.82,0.1]
[1763247552713,25.92913178,139.86,139.82,0.1]
[1763247552894,4.66082435,139.85,139.82,0.1]
[1763247553209,4.66082435,139.85,139.82,0.8]
[1763247553386,0.53,139.89,139.82,12.61277943]
[1763247553586,4.76082435,139.91,139.85,7.15051841]
[1763247553803,8.48,139.9,139.85,7.15051841]
[1763247553987,8.48,139.9,139.86,0.67]
[1763247554415,4.66082435,139.92,139.86,5.33082435]
[1763247554619,20.28777655,139.92,139.87,4.66082435]
[1763247554796,20.28777655,139.92,139.87,5.33082435]
[1763247554998,20.28777655,139.92,139.88,0.67]
[1763247555725,4.66082435,139.9,139.85,20.9611655]
[1763247555937,4.66082435,139.88,139.83,5.33082435]
[1763247556236,4.66082435,139.87,139.83,0.67]
[1763247557027,11.81066215,139.87,139.83,0.67]
[1763247558229,7.1498378,139.87,139.83,0.67]
[1763247558413,7.1498378,139.87,139.83,7.82141341]
[1763247558614,7.1498378,139.87,139.83,12.48223776]
[1763247558922,21.5988296,139.88,139.84,0.67]
[1763247559106,8.48,139.89,139.85,4.66082435]
[1763247559503,8.48,139.91,139.87,4.66082435]
[1763247559902,4.66082435,139.91,139.88,0.67]
[1763247560215,13.14082435,139.91,139.86,4.66082435]
[1763247560422,4.66082435,139.91,139.87,0.67]
[1763247561028,13.14082435,139.91,139.87,7.81942008]
[1763247561204,20.28830951,139.91,139.87,7.81942008]
[1763247563210,13.14082435,139.91,139.87,7.14942008]
[1763247563410,13.14082435,139.91,139.88,0.67]
[1763247563612,0.53,139.97,139.89,4.66082435]
[1763247563835,4.66082435,140.0,139.9,5.33082435]
[1763247563836,4.66082435,139.95,139.9,5.33082435]
[1763247564213,4.66082435,139.95,139.91,0.67]
[1763247564414,4.66082435,139.94,139.91,0.67]
[1763247564614,9.78882769,139.91,139.85,0.67]
[1763247564830,11.8095281,139.89,139.85,0.67]
[1763247565852,4.66082435,139.87,139.83,23.3212]
[1763247566020,7.14870375,139.89,139.85,4.66082435]
[1763247566438,7.14870375,139.89,139.86,0.67]
[1763247566816,36.13808245,139.91,139.86,0.67]
[1763247567020,11.80896831,139.9,139.86,0.67]
[1763247567217,11.80896831,139.9,139.86,7.81997084]
[1763247567425,11.80896831,139.9,139.87,0.67]
[1763247568946,14.56243933,139.9,139.87,0.67]
[1763247569124,7.41429537,139.9,139.87,7.81937597]
[1763247569448,7.41429537,139.92,139.87,15.23367134]
[1763247569639,15.89429537,139.93,139.88,8.08429537]
[1763247569842,7.41429537,139.93,139.89,0.67]
[1763247570349,7.41429537,139.94,139.89,0.67]
[1763247570527,7.41429537,139.94,139.89,8.08429537]
[1763247571143,14.56065076,139.94,139.9,0.67]
[1763247573115,7.41429537,139.94,139.9,0.67]
[1763247573317,8.48,139.99,139.91,8.48]
[1763247573546,7.41429537,139.98,139.93,7.41429537]
[1763247574042,7.41429537,139.98,139.94,0.67]
[1763247574356,8.48,139.99,139.94,8.08429537]
[1763247574561,7.41429537,140.0,139.95,7.41429537]
[1763247574724,7.41429537,140.0,139.95,0.67]
[1763247574918,7.41429537,139.98,139.93,0.67]
[1763247575124,14.55961345,139.96,139.91,9.15]
[1763247575646,14.55961345,139.96,139.92,0.67]
[1763247576239,7.41429537,139.95,139.92,0.67]
[1763247577335,14.55999139,139.95,139.92,0.67]
[1763247578022,7.14569602,139.95,139.92,0.67]
[1763247580530,14.55932786,139.96,139.92,0.67]
[1763247580728,14.55889507,139.97,139.92,7.81681293]
[1763247581049,8.48,139.98,139.93,7.41429537]
[1763247581238,8.48,139.98,139.93,8.08429537]
[1763247581434,0.53,140.0,139.94,8.08429537]
[1763247581435,7.14293916,140.0,139.94,8.08429537]
[1763247581646,7.41429537,140.01,139.96,7.41429537]
[1763247581954,8.48,140.02,139.98,7.14387769]
[1763247581955,23.03631267,140.02,139.98,7.14387769]
[1763247582450,23.03631267,140.02,139.98,7.81387769]
[1763247582755,23.03631267,140.02,139.98,0.67]
[1763247583054,7.41429537,140.01,139.98,0.67]
[1763247584157,7.41429537,139.99,139.94,0.66]
[1763247584359,7.41429537,139.97,139.94,0.66]
[1763247584560,7.41429537,139.97,139.92,15.22110253]
[1763247584767,7.41429537,139.96,139.93,0.66]
[1763247585168,15.89429537,139.96,139.92,22.6512]
[1763247585467,15.89429537,139.96,139.93,0.66]
[1763247585658,8.48,139.96,139.93,0.66]
[1763247586243,8.48,139.96,139.93,7.80634421]
[1763247586851,8.48,139.96,139.94,0.66]
[1763247587551,14.55768739,139.99,139.94,0.66]
[1763247587768,8.48,139.98,139.94,8.07429537]
[1763247588260,15.89429537,140.0,139.96,7.14489854]
[1763247588452,7.41429537,139.99,139.96,7.14489854]
[1763247588658,7.41429537,139.99,139.96,7.80489854]
[1763247591260,15.62289094,140.0,139.96,7.80489854]
[1763247591467,7.41429537,139.99,139.96,7.80489854]
[1763247594554,7.94429537,139.98,139.94,8.48]
[1763247594757,7.94429537,139.98,139.94,9.14]
[1763247595066,3.52098559,139.97,139.93,7.14626095]
[1763247595265,3.52098559,139.97,139.92,0.66]
[1763247595266,11.47098559,139.96,139.92,0.66]
[1763247595441,12.00098559,139.96,139.92,0.66]
[1763247595642,2.99098559,139.95,139.92,0.66]
[1763247595874,2.99098559,139.95,139.91,16.28706721]
[1763247596537,10.13672653,139.95,139.91,15.62706721]
[1763247596767,10.66672653,139.95,139.91,7.80706721]
[1763247596945,10.13672653,139.95,139.91,7.80706721]
[1763247597676,11.47098559,139.94,139.9,7.14790923]
[1763247597879,9.01,139.94,139.9,0.66]
[1763247598060,11.47098559,139.94,139.89,2.99098559]
[1763247598251,8.48,139.94,139.91,0.66]
[1763247600285,8.48,139.94,139.91,7.80739732]
[1763247600493,3.52098559,139.97,139.91,10.79838291]
[1763247600781,8.48,139.96,139.92,0.66]
[1763247601354,8.48,139.96,139.92,7.80648645]
[1763247602480,11.47098559,139.96,139.92,7.80648645]
[1763247602854,18.61591431,139.96,139.92,7.80648645]
[1763247603057,18.61591431,139.96,139.93,0.66]
[1763247603373,2.99098559,140.0,139.94,2.99098559]
[1763247603556,2.99098559,140.0,139.95,2.99098559]
[1763247603557,11.47098559,140.0,139.95,2.99098559]
[1763247603958,2.99098559,139.99,139.96,0.66]
[1763247604462,2.99098559,139.99,139.96,7.8048502]
[1763247604997,15.62301398,140.0,139.97,0.66]
[1763247605292,2.99098559,139.99,139.97,0.66]
[1763247606283,2.99098559,139.99,139.97,7.80435695]
[1763247606889,18.61386708,140.0,139.97,7.80435695]
[1763247607783,18.61386708,140.0,139.97,0.66]
[1763247608367,3.52098559,139.99,139.95,7.14526839]
[1763247608574,2.99098559,139.96,139.88,7.14898484]
[1763247608769,2.99098559,139.92,139.88,7.80898484]
[1763247608970,2.99098559,139.91,139.88,7.80898484]
[1763247609175,11.47098559,139.92,139.87,32.79148787]
[1763247609361,2.99098559,139.91,139.88,0.66]
[1763247609568,2.99098559,139.91,139.87,7.14930228]
[1763247609769,2.99098559,139.91,139.87,0.66]
[1763247610598,10.13855942,139.91,139.87,7.80946351]
[1763247610785,10.13855942,139.91,139.87,7.14946351]
[1763247610974,7.94442691,139.9,139.85,46.35603672]
[1763247611172,7.94442691,139.9,139.85,38.94160981]
[1763247611386,7.94442691,139.9,139.85,7.81040981]
[1763247611686,7.94442691,139.9,139.85,7.15040981]
[1763247611892,7.94442691,139.9,139.86,0.66]
[1763247612198,7.41442691,139.87,139.84,7.15087182]
[1763247612404,7.41442691,139.87,139.84,7.81087182]
[1763247612588,7.41442691,139.87,139.84,0.66]
[1763247612797,7.41442691,139.87,139.82,0.82]
[1763247612798,7.41442691,139.86,139.82,0.82]
[1763247613094,7.41442691,139.85,139.82,0.1]
[1763247613262,0.53,139.85,139.82,0.1]
[1763247613463,7.41442691,139.83,139.82,0.1]
[1763247613686,15.89442691,139.83,139.82,0.1]
[1763247613911,16.42442691,139.83,139.82,0.1]
[1763247615002,15.89442691,139.83,139.82,0.1]
[1763247615208,16.42442691,139.83,139.82,0.1]
[1763247615411,23.57596806,139.83,139.82,0.1]
[1763247618331,33.36479575,139.83,139.82,0.1]
[1763247619398,56.01599575,139.83,139.82,0.1]
[1763247619600,56.01599575,139.83,139.82,1e-08]
[1763247620425,35.36479574,139.83,139.82,1e-08]
[1763247622724,24.35479575,139.83,139.82,1e-08]
[1763247622924,23.04596806,139.83,139.82,1e-08]
[1763247623220,45.69716806,139.83,139.82,1e-08]
[1763247623898,38.28274115,139.83,139.82,1e-08]
[1763247624103,23.04596806,139.83,139.82,1e-08]
[1763247631028,20.2945725,139.83,139.82,1e-08]
[1763247632822,17.55004476,139.83,139.82,1e-08]
[1763247638352,18.08004476,139.83,139.82,1e-08]
[1763247638948,17.55004476,139.83,139.82,1e-08]
[1763247640055,18.08004476,139.83,139.82,1e-08]
[1763247647151,17.55004476,139.83,139.82,1e-08]
[1763247648555,18.08004476,139.83,139.82,1e-08]
[1763247649655,27.86887245,139.83,139.82,1e-08]
[1763247650959,17.55004476,139.83,139.82,0.71000001]
[1763247652163,7.15154115,139.83,139.82,0.71000001]
[1763247652345,15.63154115,139.83,139.82,0.71000001]
[1763247653251,1.91850361,139.84,139.82,0.71000001]
[1763247653252,7.15134568,139.84,139.82,0.09128608]
[1763247653461,31.1312,139.85,139.81,2.01850361]
[1763247653841,33.04970361,139.85,139.81,0.1]
[1763247654360,40.20047229,139.85,139.81,0.1]
[1763247655375,58.07676832,139.85,139.82,0.71]
[1763247655553,1.91850361,139.84,139.82,0.71]
[1763247656756,7.15154115,139.83,139.82,0.71]
[1763247657165,9.07004476,139.83,139.81,0.1]
[1763247657365,17.55004476,139.83,139.81,0.81]
[1763247660372,1.91850361,139.82,139.81,0.81]
[1763247660953,17.55004476,139.83,139.81,0.81]
[1763247666380,15.63154115,139.83,139.81,0.81]
[1763247666766,8.48,139.83,139.81,0.81]
[1763247666953,15.63155443,139.83,139.81,0.81]
[1763247671279,17.55005804,139.83,139.81,0.81]
[1763247677783,15.63155443,139.83,139.81,0.81]
[1763247678490,17.55005804,139.83,139.81,0.81]
[1763247679388,15.63155443,139.83,139.81,0.81]
[1763247679774,8.48,139.83,139.81,0.81]
[1763247682500,15.63162792,139.83,139.81,0.81]
[1763247683185,8.48,139.83,139.81,0.81]
[1763247683390,7.15128498,139.84,139.81,7.96251916]
[1763247683578,7.15076913,139.85,139.81,7.96251916]
[1763247683773,24.56970361,139.87,139.82,2.59850361]
[1763247683983,17.87203985,139.89,139.83,1.91850361]
[1763247683984,9.06767289,139.88,139.83,1.91850361]
[1763247684179,8.48,139.88,139.84,1.91850361]
[1763247684378,8.48,139.88,139.85,0.68]
[1763247685406,8.48,139.88,139.85,7.83012707]
[1763247685905,17.86943773,139.91,139.86,2.59850361]
[1763247685906,9.06613003,139.91,139.86,2.59850361]
[1763247686105,15.60762642,139.91,139.87,2.59850361]
[1763247686304,8.46,139.91,139.88,0.68]
[1763247688003,0.69,139.94,139.88,9.74742733]
[1763247688183,10.39850361,139.93,139.88,9.74742733]
[1763247688383,10.39850361,139.93,139.89,0.68]
[1763247688798,10.39850361,139.93,139.89,2.59850361]
[1763247688999,10.39850361,139.93,139.9,0.68]
[1763247689181,17.54499735,139.93,139.9,0.68]
[1763247690315,15.62649374,139.93,139.9,0.68]
[1763247692411,8.48,139.93,139.9,0.68]
[1763247693585,15.62644555,139.93,139.9,0.68]
[1763247693791,18.61904495,139.93,139.9,0.68]
[1763247694005,7.14796283,139.9,139.86,0.68]
[1763247694208,2.9925994,139.88,139.86,0.68]
[1763247695418,10.14187432,139.88,139.86,0.68]
[1763247700237,7.14927492,139.88,139.86,0.68]
[1763247701500,18.60124794,139.89,139.86,0.68]
[1763247701717,16.29864854,139.89,139.86,0.68]
[1763247702836,15.60864854,139.89,139.86,0.68]
[1763247703501,16.29864854,139.89,139.86,0.68]
[1763247704928,15.60864854,139.89,139.86,0.68]
[1763247707330,8.46,139.89,139.86,7.83000435]
[1763247707520,8.46,139.91,139.87,2.9925994]
[1763247707828,3.6825994,139.92,139.88,2.9925994]
[1763247707829,15.6069411,139.92,139.88,2.9925994]
[1763247708018,15.6069411,139.92,139.88,3.6925994]
[1763247708333,15.6069411,139.92,139.89,0.7]
[1763247708532,8.46,139.92,139.89,0.7]
[1763247709413,18.59918321,139.93,139.89,7.84814326]
[1763247709618,19.28918321,139.93,139.89,7.84814326]
[1763247709810,19.28918321,139.93,139.9,0.7]
[1763247710535,16.29658381,139.93,139.9,0.7]
[1763247710935,19.28918321,139.93,139.9,0.7]
[1763247715756,16.29658381,139.93,139.9,0.7]
[1763247715948,19.28918321,139.93,139.9,0.7]
[1763247716940,18.59918321,139.93,139.9,0.7]
[1763247717340,15.60658381,139.93,139.9,0.7]
[1763247717841,15.60658381,139.93,139.9,7.84788123]
[1763247718132,8.46,139.93,139.91,0.7]
[1763247718335,32.78966935,139.95,139.91,7.84730434]
[1763247718643,8.46,139.94,139.92,0.7]
[1763247720623,15.60607583,139.94,139.92,0.7]
[1763247720941,3.6825994,139.93,139.9,0.7]
[1763247721548,2.9925994,139.93,139.91,0.7]